[Event "Live Chess"]
[Site "Chess.com"]
[Date "2024.06.01"]
[Round "-"]
[White "grillage"]
[Black "MagnersCarlsberg2870"]
[Result "1-0"]
[WhiteElo "1936"]
[BlackElo "1893"]
[TimeControl "300"]
[EndTime "9:09:45 PDT"]
[Termination "grillage won by checkmate"]

1. d4 {[%clk 0:04:56.6]} 1... Nf6 {[%clk 0:04:58.5]} 2. Nf3 {[%clk 0:04:55.7]}
2... d6 {[%clk 0:04:56.6]} 3. c4 {[%clk 0:04:52.7]} 3... g6 {[%clk 0:04:55.5]}
4. g3 {[%clk 0:04:50.3]} 4... Bg7 {[%clk 0:04:54.3]} 5. Bg2 {[%clk 0:04:49.7]}
5... O-O {[%clk 0:04:53.3]} 6. O-O {[%clk 0:04:49.2]} 6... Bg4 {[%clk
0:04:52.2]} 7. h3 {[%clk 0:04:43.9]} 7... Bf5 {[%clk 0:04:49.5]} 8. Nc3 {[%clk
0:04:41.4]} 8... Qd7 {[%clk 0:04:48.2]} 9. Kh2 {[%clk 0:04:39.3]} 9... Nc6
{[%clk 0:04:44.1]} 10. Nh4 {[%clk 0:04:31.1]} 10... e5 {[%clk 0:04:36.3]} 11.
Nxf5 {[%clk 0:04:29.3]} 11... Qxf5 {[%clk 0:04:34.7]} 12. dxe5 {[%clk
0:04:25.9]} 12... Nxe5 {[%clk 0:04:32.4]} 13. Bxb7 {[%clk 0:04:20.7]} 13... Rab8
{[%clk 0:04:27]} 14. Bg2 {[%clk 0:04:14.9]} 14... Nxc4 {[%clk 0:04:25.9]} 15. e4
{[%clk 0:04:00.7]} 15... Qe6 {[%clk 0:04:20.7]} 16. Rb1 {[%clk 0:03:46.7]} 16...
Nd7 {[%clk 0:04:13.3]} 17. Qc2 {[%clk 0:03:41.7]} 17... Nc5 {[%clk 0:03:55.6]}
18. b3 {[%clk 0:03:35.3]} 18... Ne5 {[%clk 0:03:46.2]} 19. Bb2 {[%clk
0:03:32.4]} 19... f5 {[%clk 0:03:41.2]} 20. exf5 {[%clk 0:03:29]} 20... gxf5
{[%clk 0:03:40.2]} 21. Rbd1 {[%clk 0:03:13.9]} 21... Kh8 {[%clk 0:03:34.8]} 22.
f4 {[%clk 0:03:10.7]} 22... Ned3 {[%clk 0:03:30.5]} 23. Rxd3 {[%clk 0:03:05.2]}
23... Nxd3 {[%clk 0:03:29.3]} 24. Qxd3 {[%clk 0:03:04.6]} 24... Rbe8 {[%clk
0:03:19.5]} 25. Rf2 {[%clk 0:02:57.7]} 25... h5 {[%clk 0:03:12.4]} 26. Re2
{[%clk 0:02:55.4]} 26... Qg6 {[%clk 0:03:00]} 27. Rxe8 {[%clk 0:02:52.8]} 27...
Rxe8 {[%clk 0:02:58.9]} 28. Qc2 {[%clk 0:02:39.9]} 28... h4 {[%clk 0:02:55.6]}
29. Qf2 {[%clk 0:02:32.1]} 29... hxg3+ {[%clk 0:02:26.6]} 30. Qxg3 {[%clk
0:02:29.9]} 30... Qh6 {[%clk 0:02:21.8]} 31. Na4 {[%clk 0:02:00.4]} 31... Bxb2
{[%clk 0:02:15.7]} 32. Nxb2 {[%clk 0:01:59.4]} 32... Rg8 {[%clk 0:02:14.8]} 33.
Qc3+ {[%clk 0:01:52.4]} 33... Kh7 {[%clk 0:02:12.3]} 34. Qxc7+ {[%clk
0:01:49.7]} 34... Rg7 {[%clk 0:02:05.9]} 35. Qc2 {[%clk 0:01:47.9]} 35... Qxf4+
{[%clk 0:02:04.3]} 36. Kh1 {[%clk 0:01:45.5]} 36... Qg5 {[%clk 0:01:51.8]} 37.
Nc4 {[%clk 0:01:41.2]} 37... d5 {[%clk 0:01:49.3]} 38. Ne5 {[%clk 0:01:35.6]}
38... Kh6 {[%clk 0:01:41.1]} 39. Nf3 {[%clk 0:01:34.2]} 39... Qf4 {[%clk
0:01:22.3]} 40. Qc6+ {[%clk 0:01:23.7]} 40... Kh7 {[%clk 0:01:20.3]} 41. Qxd5
{[%clk 0:01:19]} 41... Qc1+ {[%clk 0:01:19.2]} 42. Ng1 {[%clk 0:01:16]} 42...
Qf4 {[%clk 0:01:08.2]} 43. Qd1 {[%clk 0:01:11.6]} 43... Qf2 {[%clk 0:01:03]} 44.
Qh5+ {[%clk 0:01:09.4]} 44... Kg8 {[%clk 0:01:02]} 45. Bd5+ {[%clk 0:01:04.4]}
45... Kf8 {[%clk 0:00:58.1]} 46. Qh8+ {[%clk 0:01:01.1]} 46... Ke7 {[%clk
0:00:54.4]} 47. Qxg7+ {[%clk 0:01:00.1]} 47... Kd6 {[%clk 0:00:53.6]} 48. Bg2
{[%clk 0:00:56.6]} 48... f4 {[%clk 0:00:51.9]} 49. Qf6+ {[%clk 0:00:54.2]} 49...
Kc5 {[%clk 0:00:49.6]} 50. Qe5+ {[%clk 0:00:51.1]} 50... Kb4 {[%clk 0:00:48.1]}
51. Qe4+ {[%clk 0:00:46.6]} 51... Ka3 {[%clk 0:00:46.3]} 52. Qa4+ {[%clk
0:00:43.4]} 52... Kb2 {[%clk 0:00:44.7]} 53. Qe4 {[%clk 0:00:33.4]} 53... Qg3
{[%clk 0:00:38.1]} 54. Qf3 {[%clk 0:00:30.2]} 54... Qg5 {[%clk 0:00:36]} 55.
Qf2+ {[%clk 0:00:27.1]} 55... Ka3 {[%clk 0:00:34.2]} 56. Nf3 {[%clk 0:00:26.7]}
56... Qf6 {[%clk 0:00:30]} 57. Qc5+ {[%clk 0:00:22.8]} 57... Kxa2 {[%clk
0:00:28.1]} 58. Qa5+ {[%clk 0:00:22.4]} 58... Kxb3 {[%clk 0:00:25.6]} 59. Qxa7
{[%clk 0:00:21.9]} 59... Qh6 {[%clk 0:00:17]} 60. Qb7+ {[%clk 0:00:21]} 60...
Kc3 {[%clk 0:00:15.9]} 61. Qc7+ {[%clk 0:00:20]} 61... Kd3 {[%clk 0:00:13.3]}
62. Qd7+ {[%clk 0:00:16.9]} 62... Ke3 {[%clk 0:00:11.6]} 63. Qd4+ {[%clk
0:00:15.7]} 63... Ke2 {[%clk 0:00:08.5]} 64. Qd2# {[%clk 0:00:14.7]} 1-0

[Event "Live Chess"]
[Site "Chess.com"]
[Date "2024.06.01"]
[Round "-"]
[White "14141409"]
[Black "LL220284LL"]
[Result "0-1"]
[WhiteElo "2551"]
[BlackElo "2583"]
[TimeControl "300"]
[EndTime "9:09:54 PDT"]
[Termination "LL220284LL won on time"]

1. e4 {[%clk 0:04:55.1]} 1... g6 {[%clk 0:04:58.7]} 2. d4 {[%clk 0:04:53.8]}
2... Bg7 {[%clk 0:04:58.1]} 3. Nc3 {[%clk 0:04:52.8]} 3... c6 {[%clk 0:04:56.1]}
4. Be3 {[%clk 0:04:40.2]} 4... d6 {[%clk 0:04:52.9]} 5. f4 {[%clk 0:04:37.2]}
5... Nd7 {[%clk 0:04:51.7]} 6. Nf3 {[%clk 0:04:35.6]} 6... Qa5 {[%clk
0:04:44.4]} 7. Qd2 {[%clk 0:04:28.5]} 7... b5 {[%clk 0:04:40.4]} 8. Bd3 {[%clk
0:04:21.2]} 8... Ngf6 {[%clk 0:04:37.7]} 9. e5 {[%clk 0:04:19.4]} 9... Ng4
{[%clk 0:04:35]} 10. Bg1 {[%clk 0:04:17.5]} 10... Nh6 {[%clk 0:04:31.4]} 11. a3
{[%clk 0:04:13.3]} 11... O-O {[%clk 0:04:23.2]} 12. b4 {[%clk 0:04:12.3]} 12...
Qd8 {[%clk 0:04:17.8]} 13. Ne4 {[%clk 0:04:11.5]} 13... Nb6 {[%clk 0:04:11.3]}
14. Bf2 {[%clk 0:04:08.2]} 14... Bf5 {[%clk 0:04:03.7]} 15. O-O {[%clk
0:04:04.9]} 15... Nd5 {[%clk 0:03:57.2]} 16. h3 {[%clk 0:03:56.8]} 16... a5
{[%clk 0:03:49.1]} 17. c3 {[%clk 0:03:54.2]} 17... Qc7 {[%clk 0:03:41]} 18. g4
{[%clk 0:03:43.4]} 18... Bd7 {[%clk 0:03:37.9]} 19. Bh4 {[%clk 0:03:41.7]} 19...
Rfe8 {[%clk 0:03:26.9]} 20. Bxe7 {[%clk 0:03:26.8]} 20... Nxe7 {[%clk
0:03:19.4]} 21. exd6 {[%clk 0:03:24.9]} 21... Qa7 {[%clk 0:03:07.6]} 22. dxe7
{[%clk 0:03:23.7]} 22... axb4 {[%clk 0:03:06.6]} 23. cxb4 {[%clk 0:02:49.7]}
23... Bxd4+ {[%clk 0:02:56.4]} 24. Nxd4 {[%clk 0:02:48.1]} 24... Qxd4+ {[%clk
0:02:56.3]} 25. Kg2 {[%clk 0:02:46.6]} 25... Rxe7 {[%clk 0:02:54.9]} 26. Nc5
{[%clk 0:02:45]} 26... Bxg4 {[%clk 0:02:46.8]} 27. hxg4 {[%clk 0:02:25.6]} 27...
Nxg4 {[%clk 0:02:46.7]} 28. Rfe1 {[%clk 0:02:19.5]} 28... Ne3+ {[%clk
0:02:42.5]} 29. Kf3 {[%clk 0:01:41.9]} 29... Qd5+ {[%clk 0:02:12.7]} 30. Kg3
{[%clk 0:01:37.2]} 30... Rae8 {[%clk 0:01:56.6]} 31. Qf2 {[%clk 0:01:19.1]}
31... h5 {[%clk 0:01:45.4]} 32. f5 {[%clk 0:00:51.4]} 32... h4+ {[%clk
0:01:43.4]} 33. Kh3 {[%clk 0:00:44.3]} 33... g5 {[%clk 0:01:19.8]} 34. f6 {[%clk
0:00:26.5]} 34... Re5 {[%clk 0:01:17.4]} 35. Rg1 {[%clk 0:00:22.3]} 35... Kh8
{[%clk 0:01:04.4]} 36. Rae1 {[%clk 0:00:16.8]} 36... Qd4 {[%clk 0:00:16.5]} 37.
Be4 {[%clk 0:00:09.4]} 37... Rxe4 {[%clk 0:00:14]} 38. Nxe4 {[%clk 0:00:08.4]}
38... Rxe4 {[%clk 0:00:13.6]} 39. Rxg5 {[%clk 0:00:07]} 39... Qd7+ {[%clk
0:00:11.9]} 40. Kh2 {[%clk 0:00:05.8]} 40... Ng4+ {[%clk 0:00:11.1]} 41. Rxg4
{[%clk 0:00:05]} 41... Qxg4 {[%clk 0:00:11]} 42. Rxe4 {[%clk 0:00:03.9]} 42...
Qxe4 {[%clk 0:00:10.1]} 43. Qg1 {[%clk 0:00:03.3]} 43... Qf4+ {[%clk 0:00:09.2]}
44. Kh1 {[%clk 0:00:02.9]} 44... Qf3+ {[%clk 0:00:08.4]} 45. Kh2 {[%clk
0:00:01.7]} 45... Qg3+ {[%clk 0:00:07.7]} 46. Qxg3 {[%clk 0:00:00.5]} 46...
hxg3+ {[%clk 0:00:07.6]} 0-1

[Event "Live Chess"]
[Site "Chess.com"]
[Date "2024.06.01"]
[Round "-"]
[White "Nathaniel250"]
[Black "SirGerhard"]
[Result "0-1"]
[WhiteElo "1384"]
[BlackElo "2750"]
[TimeControl "300"]
[EndTime "9:10:02 PDT"]
[Termination "SirGerhard won by checkmate"]

1. c4 {[%clk 0:04:51.6]} 1... e5 {[%clk 0:04:58.9]} 2. Nc3 {[%clk 0:04:49.8]}
2... Bb4 {[%clk 0:04:57.8]} 3. Nd5 {[%clk 0:04:48.1]} 3... Be7 {[%clk 0:04:56]}
4. e4 {[%clk 0:04:45.3]} 4... Nf6 {[%clk 0:04:54.6]} 5. d3 {[%clk 0:04:43.5]}
5... Nxd5 {[%clk 0:04:53.1]} 6. cxd5 {[%clk 0:04:43]} 6... c6 {[%clk 0:04:52.5]}
7. dxc6 {[%clk 0:04:41.4]} 7... Nxc6 {[%clk 0:04:51.5]} 8. Nf3 {[%clk
0:04:38.7]} 8... O-O {[%clk 0:04:50.6]} 9. Be2 {[%clk 0:04:36.6]} 9... d5 {[%clk
0:04:48.6]} 10. O-O {[%clk 0:04:33.3]} 10... Be6 {[%clk 0:04:47.8]} 11. h3
{[%clk 0:04:27.8]} 11... Qd7 {[%clk 0:04:46.5]} 12. Ng5 {[%clk 0:04:21.2]} 12...
Bxg5 {[%clk 0:04:45.3]} 13. Bxg5 {[%clk 0:04:20.6]} 13... f6 {[%clk 0:04:44.8]}
14. Bc1 {[%clk 0:04:18.2]} 14... Rac8 {[%clk 0:04:41.4]} 15. Bg4 {[%clk
0:03:57.3]} 15... Bxg4 {[%clk 0:04:32.6]} 16. Qxg4 {[%clk 0:03:57.2]} 16... Qxg4
{[%clk 0:04:31]} 17. hxg4 {[%clk 0:03:57.1]} 17... Nb4 {[%clk 0:04:28.7]} 18.
Rd1 {[%clk 0:03:46.6]} 18... Rc2 {[%clk 0:04:23.2]} 19. a3 {[%clk 0:03:41.5]}
19... Nc6 {[%clk 0:04:21.9]} 20. Rb1 {[%clk 0:03:31.1]} 20... Rd8 {[%clk
0:04:19]} 21. Bd2 {[%clk 0:03:29.9]} 21... dxe4 {[%clk 0:04:16.4]} 22. Bc3
{[%clk 0:03:14]} 22... exd3 {[%clk 0:04:13.9]} 23. Rbc1 {[%clk 0:03:11.3]} 23...
Re2 {[%clk 0:04:03.4]} 24. Rd2 {[%clk 0:03:05.1]} 24... Rxd2 {[%clk 0:03:58.4]}
25. Bxd2 {[%clk 0:03:05]} 25... Kf7 {[%clk 0:03:55.4]} 26. b4 {[%clk 0:03:00.1]}
26... a6 {[%clk 0:03:54.3]} 27. Rd1 {[%clk 0:02:48]} 27... Ke6 {[%clk 0:03:53]}
28. g5 {[%clk 0:02:47.3]} 28... f5 {[%clk 0:03:51.8]} 29. f3 {[%clk 0:02:40.8]}
29... f4 {[%clk 0:03:49.3]} 30. Kh2 {[%clk 0:02:28.6]} 30... Kf5 {[%clk
0:03:48.6]} 31. Kh3 {[%clk 0:02:27.6]} 31... Kxg5 {[%clk 0:03:47.9]} 32. Bc3
{[%clk 0:02:25.5]} 32... Kf5 {[%clk 0:03:47]} 33. Kh4 {[%clk 0:02:24.6]} 33...
Rd6 {[%clk 0:03:46.2]} 34. Kh5 {[%clk 0:02:21.9]} 34... Rh6# {[%clk 0:03:44.6]}
0-1

[Event "Live Chess"]
[Site "Chess.com"]
[Date "2024.06.01"]
[Round "-"]
[White "CheDA13"]
[Black "YukHei_Lee2011"]
[Result "0-1"]
[WhiteElo "1502"]
[BlackElo "2016"]
[TimeControl "300"]
[EndTime "9:10:03 PDT"]
[Termination "YukHei_Lee2011 won by resignation"]

1. e4 {[%clk 0:04:58]} 1... c6 {[%clk 0:04:59.3]} 2. d4 {[%clk 0:04:51.4]} 2...
d5 {[%clk 0:04:59.2]} 3. exd5 {[%clk 0:04:51.1]} 3... cxd5 {[%clk 0:04:58.8]} 4.
c4 {[%clk 0:04:50.7]} 4... Nf6 {[%clk 0:04:57.2]} 5. Nc3 {[%clk 0:04:49.3]} 5...
dxc4 {[%clk 0:04:51.5]} 6. Bxc4 {[%clk 0:04:47.5]} 6... e6 {[%clk 0:04:50.5]} 7.
Nf3 {[%clk 0:04:45.6]} 7... Nc6 {[%clk 0:04:49.1]} 8. O-O {[%clk 0:04:42.5]}
8... Bd6 {[%clk 0:04:44.4]} 9. Re1 {[%clk 0:04:34.5]} 9... O-O {[%clk
0:04:43.3]} 10. a3 {[%clk 0:04:25.4]} 10... a6 {[%clk 0:04:40.3]} 11. Bg5 {[%clk
0:04:11.2]} 11... h6 {[%clk 0:04:33.4]} 12. Be3 {[%clk 0:04:04.3]} 12... b5
{[%clk 0:04:31]} 13. Bd3 {[%clk 0:04:02.1]} 13... Bb7 {[%clk 0:04:25.1]} 14. Qd2
{[%clk 0:03:55.4]} 14... Re8 {[%clk 0:04:12.6]} 15. Rac1 {[%clk 0:03:35.4]}
15... Rc8 {[%clk 0:03:59.5]} 16. Bf4 {[%clk 0:03:04.2]} 16... Na5 {[%clk
0:03:43.8]} 17. Rb1 {[%clk 0:02:20.6]} 17... Bxf3 {[%clk 0:03:33.6]} 18. gxf3
{[%clk 0:02:16.3]} 18... Nb3 {[%clk 0:03:17.7]} 19. Qe3 {[%clk 0:02:11.4]} 19...
Bxf4 {[%clk 0:03:16.5]} 20. Qxf4 {[%clk 0:02:10.4]} 20... Qxd4 {[%clk
0:03:13.4]} 21. Qxd4 {[%clk 0:02:04.4]} 21... Nxd4 {[%clk 0:03:13.3]} 22. Ne4
{[%clk 0:01:55.2]} 22... Nxf3+ {[%clk 0:03:11.5]} 0-1

[Event "Live Chess"]
[Site "Chess.com"]
[Date "2024.06.01"]
[Round "-"]
[White "Queensandpawns"]
[Black "LaupMiths"]
[Result "0-1"]
[WhiteElo "2473"]
[BlackElo "1910"]
[TimeControl "300"]
[EndTime "9:10:04 PDT"]
[Termination "LaupMiths won by checkmate"]

1. d4 {[%clk 0:04:53.1]} 1... Nf6 {[%clk 0:04:57.1]} 2. Nc3 {[%clk 0:04:53]}
2... d5 {[%clk 0:04:54.2]} 3. Bf4 {[%clk 0:04:52.9]} 3... g6 {[%clk 0:04:50.1]}
4. e3 {[%clk 0:04:51.7]} 4... Bg7 {[%clk 0:04:48.1]} 5. h4 {[%clk 0:04:51.6]}
5... h6 {[%clk 0:04:45.5]} 6. h5 {[%clk 0:04:51.5]} 6... g5 {[%clk 0:04:44.2]}
7. Be5 {[%clk 0:04:49.3]} 7... c6 {[%clk 0:04:40.6]} 8. Bd3 {[%clk 0:04:48.5]}
8... Nbd7 {[%clk 0:04:36.9]} 9. Nge2 {[%clk 0:04:47.8]} 9... a5 {[%clk
0:04:31.9]} 10. f4 {[%clk 0:04:46.2]} 10... Nxe5 {[%clk 0:04:28]} 11. dxe5
{[%clk 0:04:45.1]} 11... Ng4 {[%clk 0:04:23.8]} 12. Qd2 {[%clk 0:04:43.7]} 12...
Qb6 {[%clk 0:04:12]} 13. O-O-O {[%clk 0:04:38]} 13... Qxe3 {[%clk 0:04:07.1]}
14. Rde1 {[%clk 0:04:35.1]} 14... b5 {[%clk 0:03:53.3]} 15. fxg5 {[%clk
0:04:31.9]} 15... hxg5 {[%clk 0:03:51.2]} 16. Qxe3 {[%clk 0:04:22.1]} 16... Nxe3
{[%clk 0:03:49.1]} 17. Ng3 {[%clk 0:04:20.1]} 17... Nxg2 {[%clk 0:03:35.8]} 18.
Ref1 {[%clk 0:04:12.9]} 18... Nf4 {[%clk 0:03:33.7]} 19. Bf5 {[%clk 0:04:11.3]}
19... Bxe5 {[%clk 0:03:24.1]} 20. Bxc8 {[%clk 0:04:09]} 20... Rxc8 {[%clk
0:03:21.5]} 21. Re1 {[%clk 0:04:08.6]} 21... f6 {[%clk 0:03:16.6]} 22. Nf5
{[%clk 0:04:07.4]} 22... Kf7 {[%clk 0:03:11.7]} 23. Rhf1 {[%clk 0:04:02.2]}
23... Rxh5 {[%clk 0:03:03.8]} 24. Ne2 {[%clk 0:03:56.2]} 24... Ng2 {[%clk
0:02:42.3]} 25. Rd1 {[%clk 0:03:50]} 25... e6 {[%clk 0:02:34.6]} 26. Neg3 {[%clk
0:03:44.9]} 26... Rh2 {[%clk 0:02:18.7]} 27. Rd2 {[%clk 0:03:09.2]} 27... exf5
{[%clk 0:02:13.7]} 28. Nxf5 {[%clk 0:03:09.1]} 28... Rch8 {[%clk 0:02:02.4]} 29.
a4 {[%clk 0:02:55.4]} 29... b4 {[%clk 0:01:52.1]} 30. c3 {[%clk 0:02:45.9]}
30... bxc3 {[%clk 0:01:40.9]} 31. bxc3 {[%clk 0:02:45.8]} 31... Rh1 {[%clk
0:01:39.7]} 32. Rxh1 {[%clk 0:02:39.5]} 32... Rxh1+ {[%clk 0:01:37]} 33. Kb2
{[%clk 0:02:39.4]} 33... Nf4 {[%clk 0:01:23.3]} 34. Ng3 {[%clk 0:02:30.2]} 34...
Rg1 {[%clk 0:01:10.9]} 35. Nf5 {[%clk 0:02:24.3]} 35... Rg2 {[%clk 0:01:07.3]}
36. Kc2 {[%clk 0:02:22.1]} 36... Rxd2+ {[%clk 0:01:05.3]} 37. Kxd2 {[%clk
0:02:22]} 37... Ke6 {[%clk 0:01:00.8]} 38. Ng7+ {[%clk 0:02:16.9]} 38... Kd6
{[%clk 0:00:58.3]} 39. Nf5+ {[%clk 0:02:16.8]} 39... Kc5 {[%clk 0:00:57]} 40.
Kc2 {[%clk 0:02:12.1]} 40... g4 {[%clk 0:00:54.5]} 41. Ne3 {[%clk 0:02:11.6]}
41... g3 {[%clk 0:00:51.8]} 42. c4 {[%clk 0:02:04.1]} 42... d4 {[%clk
0:00:48.8]} 43. Ng4 {[%clk 0:01:57]} 43... g2 {[%clk 0:00:45.9]} 44. Nf2 {[%clk
0:01:56.6]} 44... g1=Q {[%clk 0:00:38.3]} 45. Ne4+ {[%clk 0:01:56.5]} 45... Kb6
{[%clk 0:00:36.4]} 46. Nd2 {[%clk 0:01:56.4]} 46... Qe3 {[%clk 0:00:33.8]} 47.
c5+ {[%clk 0:01:56.3]} 47... Kc7 {[%clk 0:00:31.2]} 48. Nb3 {[%clk 0:01:53.6]}
48... Qc3+ {[%clk 0:00:29.7]} 49. Kb1 {[%clk 0:01:50.5]} 49... Qxb3+ {[%clk
0:00:28.5]} 50. Ka1 {[%clk 0:01:50.4]} 50... d3# {[%clk 0:00:23.9]} 0-1

[Event "Live Chess"]
[Site "Chess.com"]
[Date "2024.06.01"]
[Round "-"]
[White "Tushinskiy"]
[Black "A3ndrey9"]
[Result "1-0"]
[WhiteElo "2174"]
[BlackElo "1255"]
[TimeControl "300"]
[EndTime "9:10:07 PDT"]
[Termination "Tushinskiy won by resignation"]

1. d4 {[%clk 0:04:57.4]} 1... c6 {[%clk 0:04:59.9]} 2. c3 {[%clk 0:04:57]} 2...
d5 {[%clk 0:04:59.8]} 3. Nf3 {[%clk 0:04:56.4]} 3... Bf5 {[%clk 0:04:59.7]} 4.
Bf4 {[%clk 0:04:56]} 4... e6 {[%clk 0:04:58.7]} 5. Nbd2 {[%clk 0:04:55.2]} 5...
Nf6 {[%clk 0:04:57.8]} 6. Bg3 {[%clk 0:04:55.1]} 6... h6 {[%clk 0:04:53.9]} 7.
e3 {[%clk 0:04:54.1]} 7... Be7 {[%clk 0:04:53.2]} 8. Be2 {[%clk 0:04:53.4]} 8...
O-O {[%clk 0:04:51.7]} 9. b4 {[%clk 0:04:52.3]} 9... a5 {[%clk 0:04:49.7]} 10.
a3 {[%clk 0:04:50.6]} 10... axb4 {[%clk 0:04:47.6]} 11. axb4 {[%clk 0:04:50.5]}
11... Rxa1 {[%clk 0:04:42.4]} 12. Qxa1 {[%clk 0:04:49.9]} 12... Nbd7 {[%clk
0:04:40.2]} 13. O-O {[%clk 0:04:49]} 13... Qa8 {[%clk 0:04:39.1]} 14. h3 {[%clk
0:04:43.7]} 14... Nb6 {[%clk 0:04:31]} 15. Bc7 {[%clk 0:04:32.5]} 15... Nc4
{[%clk 0:04:21.9]} 16. Nxc4 {[%clk 0:04:27.7]} 16... dxc4 {[%clk 0:04:20.8]} 17.
Bxc4 {[%clk 0:04:27.6]} 17... Ne4 {[%clk 0:04:15.9]} 18. Qb2 {[%clk 0:04:24.5]}
18... Qc8 {[%clk 0:04:10.6]} 19. Bh2 {[%clk 0:04:20]} 19... Bd6 {[%clk
0:04:05.6]} 20. Ra1 {[%clk 0:04:15.4]} 20... Bxh2+ {[%clk 0:04:00.6]} 21. Nxh2
{[%clk 0:04:15.3]} 21... Qc7 {[%clk 0:03:59.7]} 22. Be2 {[%clk 0:04:13.4]} 22...
b5 {[%clk 0:03:47.8]} 23. Nf1 {[%clk 0:04:11.4]} 23... Ng5 {[%clk 0:03:37.4]}
24. Ng3 {[%clk 0:04:06.9]} 24... Ne4 {[%clk 0:03:26.7]} 25. Nxf5 {[%clk
0:03:51.8]} 25... exf5 {[%clk 0:03:26.6]} 26. Bf3 {[%clk 0:03:51.2]} 26... Re8
{[%clk 0:03:20.8]} 27. Ra3 {[%clk 0:03:49.5]} 27... Ng5 {[%clk 0:03:16.5]} 28.
Be2 {[%clk 0:03:45.3]} 28... Qe7 {[%clk 0:03:08.1]} 29. Bd3 {[%clk 0:03:34.8]}
29... f4 {[%clk 0:03:01.1]} 30. exf4 {[%clk 0:03:28.9]} 30... Qe1+ {[%clk
0:03:00]} 31. Bf1 {[%clk 0:03:28.1]} 31... Nh7 {[%clk 0:02:15.5]} 32. Qa1 {[%clk
0:03:20.7]} 32... Re2 {[%clk 0:01:47]} 33. Ra8+ {[%clk 0:02:54.2]} 33... Nf8
{[%clk 0:01:43.9]} 34. Qxe1 {[%clk 0:02:53.4]} 34... Rxe1 {[%clk 0:01:42.9]} 35.
Rc8 {[%clk 0:02:51.1]} 35... Re4 {[%clk 0:01:32.7]} 36. g3 {[%clk 0:02:48.9]}
36... Re6 {[%clk 0:01:25.6]} 37. Kg2 {[%clk 0:02:41.9]} 37... g5 {[%clk
0:01:23.8]} 38. f5 {[%clk 0:02:39.4]} 38... Rd6 {[%clk 0:01:13.4]} 39. Bd3
{[%clk 0:02:36.9]} 39... Kg7 {[%clk 0:01:11]} 40. Be4 {[%clk 0:02:34.1]} 40...
Nd7 {[%clk 0:00:55.1]} 41. Rxc6 {[%clk 0:02:18.4]} 41... Rxc6 {[%clk 0:00:48.6]}
42. Bxc6 {[%clk 0:02:18.3]} 42... Nb6 {[%clk 0:00:40.5]} 43. Bxb5 {[%clk
0:02:16.1]} 43... Kf6 {[%clk 0:00:39.9]} 44. Bd3 {[%clk 0:01:56.5]} 44... Nd5
{[%clk 0:00:37.6]} 45. b5 {[%clk 0:01:51.5]} 45... Nxc3 {[%clk 0:00:35.9]} 46.
b6 {[%clk 0:01:49.3]} 1-0

[Event "Live Chess"]
[Site "Chess.com"]
[Date "2024.06.01"]
[Round "-"]
[White "SvitlanaJ"]
[Black "Keithdfg"]
[Result "0-1"]
[WhiteElo "393"]
[BlackElo "1727"]
[TimeControl "300"]
[EndTime "9:10:22 PDT"]
[Termination "Keithdfg won by checkmate"]

1. e4 {[%clk 0:04:53.7]} 1... d6 {[%clk 0:04:55]} 2. d4 {[%clk 0:04:51.1]} 2...
Nf6 {[%clk 0:04:53.3]} 3. e5 {[%clk 0:04:47.5]} 3... dxe5 {[%clk 0:04:51.6]} 4.
dxe5 {[%clk 0:04:46.2]} 4... Qxd1+ {[%clk 0:04:51.2]} 5. Kxd1 {[%clk 0:04:45.1]}
5... Ng4 {[%clk 0:04:48.6]} 6. Bf4 {[%clk 0:04:38.9]} 6... Nxf2+ {[%clk
0:04:46.2]} 7. Ke1 {[%clk 0:04:34.1]} 7... Nxh1 {[%clk 0:04:44.2]} 8. Nc3 {[%clk
0:04:31.3]} 8... Bf5 {[%clk 0:04:42.8]} 9. Rc1 {[%clk 0:04:27.2]} 9... c6 {[%clk
0:04:41.6]} 10. h3 {[%clk 0:04:17.7]} 10... e6 {[%clk 0:04:40]} 11. g4 {[%clk
0:04:15.9]} 11... Bg6 {[%clk 0:04:37.6]} 12. Be2 {[%clk 0:04:07]} 12... Bc5
{[%clk 0:04:34.8]} 13. Nf3 {[%clk 0:04:04.8]} 13... Nf2 {[%clk 0:04:31.5]} 14.
g5 {[%clk 0:03:53.6]} 14... Nxh3 {[%clk 0:04:28.9]} 15. Rd1 {[%clk 0:03:45.7]}
15... Nxf4 {[%clk 0:04:26.7]} 16. a3 {[%clk 0:03:33.4]} 16... Nxe2 {[%clk
0:04:22.7]} 17. Nxe2 {[%clk 0:03:30.9]} 17... Nd7 {[%clk 0:04:20.8]} 18. b4
{[%clk 0:03:24.5]} 18... Be3 {[%clk 0:04:19]} 19. Nh4 {[%clk 0:03:13.7]} 19...
O-O-O {[%clk 0:04:16.9]} 20. Nc3 {[%clk 0:02:54.2]} 20... Bxg5 {[%clk
0:04:14.6]} 21. Nf3 {[%clk 0:02:48.5]} 21... Be7 {[%clk 0:04:11.7]} 22. Na4
{[%clk 0:02:34.9]} 22... h5 {[%clk 0:04:08.7]} 23. Ke2 {[%clk 0:02:31.4]} 23...
h4 {[%clk 0:04:06.8]} 24. Rh1 {[%clk 0:02:28.5]} 24... h3 {[%clk 0:04:05.9]} 25.
Nc5 {[%clk 0:02:22.5]} 25... Nxc5 {[%clk 0:04:04.1]} 26. bxc5 {[%clk 0:02:21.2]}
26... Bxc5 {[%clk 0:04:01.6]} 27. Ng5 {[%clk 0:02:16.5]} 27... h2 {[%clk
0:03:58.3]} 28. Nxf7 {[%clk 0:02:15]} 28... Bxf7 {[%clk 0:03:57]} 29. c4 {[%clk
0:02:05.9]} 29... Bg1 {[%clk 0:03:55]} 30. Kf1 {[%clk 0:02:01.4]} 30... Bh5
{[%clk 0:03:52.9]} 31. Kg2 {[%clk 0:01:59.1]} 31... Rd2+ {[%clk 0:03:50.4]} 32.
Kg3 {[%clk 0:01:57.1]} 32... Bg6 {[%clk 0:03:47.1]} 33. Kf4 {[%clk 0:01:54.8]}
33... Bf5 {[%clk 0:03:45]} 34. Kg5 {[%clk 0:01:53.2]} 34... Rh3 {[%clk
0:03:42.9]} 35. c5 {[%clk 0:01:48.7]} 35... Rg2+ {[%clk 0:03:41.2]} 36. Kf4
{[%clk 0:01:46.2]} 36... Be3# {[%clk 0:03:40.1]} 0-1

[Event "Live Chess"]
[Site "Chess.com"]
[Date "2024.06.01"]
[Round "-"]
[White "edward33_24h"]
[Black "Hazban"]
[Result "0-1"]
[WhiteElo "625"]
[BlackElo "2034"]
[TimeControl "300"]
[EndTime "9:10:23 PDT"]
[Termination "Hazban won by resignation"]

1. d4 {[%clk 0:04:53.2]} 1... Nf6 {[%clk 0:04:58.3]} 2. Nf3 {[%clk 0:04:49.1]}
2... d5 {[%clk 0:04:54.7]} 3. Bf4 {[%clk 0:04:43.5]} 3... c6 {[%clk 0:04:53.4]}
4. e3 {[%clk 0:04:39.1]} 4... Qb6 {[%clk 0:04:52.2]} 5. Be2 {[%clk 0:04:30.3]}
5... Qxb2 {[%clk 0:04:47.3]} 6. Nbd2 {[%clk 0:04:26.6]} 6... Bf5 {[%clk
0:04:43.5]} 7. Qc1 {[%clk 0:04:21.8]} 7... Qxc2 {[%clk 0:04:38.4]} 8. Qxc2
{[%clk 0:04:18.4]} 8... Bxc2 {[%clk 0:04:36.5]} 9. O-O {[%clk 0:04:16.1]} 9...
Nbd7 {[%clk 0:04:32.9]} 10. Rfd1 {[%clk 0:04:10.7]} 10... Bxd1 {[%clk
0:04:31.2]} 11. Rxd1 {[%clk 0:04:05.7]} 11... e6 {[%clk 0:04:28.4]} 12. Ne5
{[%clk 0:03:58.5]} 12... Nxe5 {[%clk 0:04:26.4]} 13. Bxe5 {[%clk 0:03:53.9]}
13... Nd7 {[%clk 0:04:24.6]} 14. Bf4 {[%clk 0:03:49.4]} 14... Be7 {[%clk
0:04:19.9]} 15. Nf3 {[%clk 0:03:45.3]} 15... O-O {[%clk 0:04:18.3]} 16. Bg5
{[%clk 0:03:36.7]} 16... Bxg5 {[%clk 0:04:16.3]} 17. Nxg5 {[%clk 0:03:33.1]}
17... c5 {[%clk 0:04:15.2]} 18. Bb5 {[%clk 0:03:25.6]} 18... Nf6 {[%clk
0:04:02.9]} 19. dxc5 {[%clk 0:03:16.7]} 19... Rfc8 {[%clk 0:04:00.4]} 20. Rc1
{[%clk 0:03:11]} 20... h6 {[%clk 0:03:58.6]} 21. Nf3 {[%clk 0:03:04.1]} 21...
Ne4 {[%clk 0:03:57.5]} 22. c6 {[%clk 0:02:57.9]} 22... a6 {[%clk 0:03:48.1]} 23.
Ba4 {[%clk 0:02:52.9]} 23... b5 {[%clk 0:03:43.6]} 24. Bc2 {[%clk 0:02:47]}
24... Nc3 {[%clk 0:03:33.9]} 25. Bb3 {[%clk 0:02:41.8]} 25... Ne2+ {[%clk
0:03:32.1]} 0-1